bitfinex-derivatives/quotes_SOLF0:USTF0_20241002
["timestamp","ask_amount","ask_price","bid_price","bid_amount"]
[1727881259828,0.12502,145.49,145.48,3.437]
[1727881261933,0.12502,145.49,145.47,3.4371]
[1727881262130,3.4371,145.48,145.41,29.7845392]
[1727881262333,0.12502,145.49,145.42,6.74]
[1727881263135,0.12502,145.49,145.42,10.23409335]
[1727881263451,0.12502,145.49,145.42,3.49409335]
[1727881263634,26.55502,145.49,145.39,74.26]
[1727881263944,8.0214,145.48,145.39,6.74]
[1727881264238,3.4383,145.43,145.39,3.4391]
[1727881264430,8.0214,145.48,145.37,6.86502]
[1727881264631,3.4379,145.45,145.41,3.4386]
[1727881264937,8.0214,145.48,145.37,6.86502]
[1727881265431,3.438,145.44,145.4,3.4388]
[1727881265636,8.0214,145.48,145.37,6.86502]
[1727881266038,3.4383,145.43,145.37,6.86502]
[1727881266239,8.0214,145.48,145.37,6.86502]
[1727881266432,3.4381,145.44,145.4,3.4388]
[1727881266631,8.0214,145.48,145.37,6.86502]
[1727881267629,3.4381,145.44,145.4,3.4388]
[1727881268038,8.0214,145.48,145.37,6.86502]
[1727881268338,26.43,145.47,145.31,74.26]
[1727881268636,3.4389,145.41,145.37,3.4394]
[1727881268838,0.12502,145.43,145.33,26.43]
[1727881269234,3.4385,145.42,145.36,3.4399]
[1727881269432,0.12502,145.37,145.33,26.43]
[1727881269628,0.12502,145.37,145.36,26.43]
[1727881269833,0.12502,145.43,145.36,33.17]
[1727881270337,0.12502,145.43,145.42,3.4384]
[1727881271132,0.12502,145.43,145.4,10.11470981]
[1727881271133,0.12502,145.43,145.4,10.1788]
[1727881271332,0.12502,145.43,145.38,6.74]
[1727881271736,0.12502,145.43,145.39,3.439]
[1727881271937,0.12502,145.43,145.38,6.74]
[1727881272329,0.12502,145.43,145.41,3.4386]
[1727881272535,0.12502,145.43,145.39,3.43741385]
[1727881272735,0.12502,145.43,145.38,33.17]
[1727881273035,1.2814,145.48,145.4,26.43]
[1727881273237,0.12502,145.49,145.43,26.43]
[1727881273429,0.12502,145.49,145.48,3.437]
[1727881274437,6.74,145.59,145.52,3.4359]
[1727881274641,1.3371,145.58,145.48,33.17]
[1727881274834,3.435,145.57,145.48,33.17]
[1727881275039,1.3371,145.58,145.53,3.4358]
[1727881275244,1.3371,145.58,145.52,6.74]
[1727881275641,14.31257428,145.58,145.54,3.4356]
[1727881275938,12.97547428,145.58,145.54,3.4356]
[1727881276143,2.6825,145.59,145.54,3.4356]
[1727881276639,2.6825,145.59,145.53,3.4358]
[1727881276840,2.6825,145.59,145.52,6.74]
[1727881277044,1.3306,145.58,145.52,6.74]
[1727881277243,1.3306,145.58,145.52,10.1759]
[1727881277443,3.4351,145.57,145.52,10.1759]
[1727881278244,3.4351,145.57,145.52,6.74]
[1727881278436,1.3306,145.58,145.53,3.4358]
[1727881278643,14.30607428,145.58,145.52,6.74]
[1727881278844,15.65797428,145.59,145.54,3.4356]
[1727881279050,12.97547428,145.58,145.54,3.4356]
[1727881279350,2.6825,145.59,145.53,26.43]
[1727881279946,2.6825,145.59,145.54,3.4356]
[1727881280245,26.03427141,145.6,145.58,3.4345]
[1727881280446,0.12502,145.61,145.56,6.74]
[1727881280645,12.97547428,145.59,145.56,6.74]
[1727881281149,13.10049428,145.61,145.5,26.43]
[1727881281352,13.10049428,145.61,145.51,6.74]
[1727881281950,0.12502,145.55,145.51,6.74]
[1727881282545,0.12502,145.55,145.52,3.436]
[1727881282754,0.12502,145.55,145.51,6.74]
[1727881284049,0.12502,145.55,145.52,3.4359]
[1727881284249,0.12502,145.55,145.51,6.74]
[1727881285252,0.12502,145.55,145.52,3.4359]
[1727881285444,0.12502,145.55,145.51,6.74]
[1727881285644,0.12502,145.55,145.51,10.1762]
[1727881286053,0.12502,145.55,145.51,6.74]
[1727881287351,0.12502,145.55,145.52,3.436]
[1727881288049,0.12502,145.55,145.53,3.4358]
[1727881288847,0.12502,145.55,145.51,6.74]
[1727881289052,0.12502,145.55,145.54,3.4356]
[1727881289257,0.12502,145.55,145.51,6.74]
[1727881289647,0.12502,145.55,145.53,3.4358]
[1727881289950,0.12502,145.55,145.51,6.74]
[1727881290350,0.12502,145.55,145.52,3.4359]
[1727881290551,0.12502,145.55,145.51,6.74]
[1727881290753,0.12502,145.55,145.53,3.4356]
[1727881290949,0.12502,145.55,145.51,6.74]
[1727881291446,0.12502,145.55,145.52,3.436]
[1727881291653,0.12502,145.55,145.45,38.21083839]
[1727881291946,0.12502,145.55,145.43,26.55502]
[1727881292148,0.12502,145.55,145.44,6.74]
[1727881292353,1.51892,145.55,145.44,10.10597265]
[1727881292547,3.4362,145.52,145.48,3.4369]
[1727881292755,8.25892,145.55,145.45,26.43]
[1727881293151,3.4365,145.51,145.47,3.4372]
[1727881293351,34.68892,145.55,145.44,6.74]
[1727881293555,1.2909,145.5,145.44,6.74]
[1727881293853,1.2909,145.5,145.43,23.35502]
[1727881294251,3.4369,145.49,145.45,3.4377]
[1727881294448,1.2909,145.5,145.43,23.35502]
[1727881294644,16.49,145.49,145.43,0.12502]
[1727881294953,1.2939,145.48,145.43,0.12502]
[1727881295564,1.2939,145.48,145.43,3.56302]
[1727881296061,3.4374,145.47,145.44,3.438]
[1727881296248,1.2939,145.48,145.43,0.12502]
[1727881296448,3.4374,145.47,145.43,0.12502]
[1727881296665,1.2939,145.48,145.43,0.12502]
[1727881298247,1.2939,145.48,145.37,0.12502]
[1727881298248,3.4387,145.41,145.37,0.12502]
[1727881298453,26.4,145.44,145.37,0.12502]
[1727881298652,4.70818118,145.43,145.37,0.12502]
[1727881298962,3.45619584,145.42,145.37,0.12502]
[1727881299264,8.0274,145.43,145.37,0.12502]
[1727881299457,1.3822,145.41,145.37,0.12502]
[1727881299652,3.4394,145.38,145.37,0.12502]
[1727881299863,3.4394,145.38,145.32,6.74]
[1727881299864,1.3822,145.41,145.32,6.74]
[1727881300161,3.4397,145.37,145.34,3.4403]
[1727881302265,3.4393,145.39,145.36,3.4398]
[1727881302563,1.3822,145.41,145.36,3.4398]
[1727881302755,1.3822,145.41,145.32,33.14]
[1727881302959,3.4391,145.4,145.32,33.14]
[1727881303555,3.4391,145.4,145.36,3.4397]
[1727881303859,1.3822,145.41,145.32,6.74]
[1727881304256,3.4399,145.36,145.32,6.74]
[1727881304456,6.74,145.39,145.32,3.4408]
[1727881304868,3.4402,145.35,145.32,3.4408]
[1727881305164,1.3511,145.38,145.34,3.4403]
[1727881305666,3.4398,145.37,145.34,3.4403]
[1727881306366,3.44,145.36,145.33,3.4405]
[1727881306566,1.3511,145.38,145.31,0.12502]
[1727881307055,3.4399,145.36,145.31,0.12502]
[1727881307259,1.3511,145.38,145.31,0.12502]
[1727881307662,3.4399,145.36,145.32,3.4406]
[1727881308065,1.3511,145.38,145.31,0.12502]
[1727881308656,1.3511,145.38,145.32,3.4406]
[1727881309362,3.4402,145.35,145.32,3.4406]
[1727881310663,1.3511,145.38,145.32,26.4]
[1727881310960,1.3822,145.41,145.34,26.4]
[1727881311367,1.41242,145.43,145.36,26.4]
[1727881311666,1.41242,145.43,145.41,3.4386]
[1727881311857,1.41242,145.43,145.36,36.58113397]
[1727881312261,4.85062,145.43,145.4,3.4387]
[1727881312460,1.41242,145.43,145.36,36.58113397]
[1727881312663,0.12502,145.43,145.42,3.4384]
[1727881312862,0.12502,145.43,145.38,26.4]
[1727881313261,0.12502,145.43,145.39,3.439]
[1727881313563,0.12502,145.43,145.38,26.4]
[1727881314070,0.12502,145.43,145.42,3.4384]
[1727881315575,0.12502,145.43,145.38,26.4]
[1727881315872,3.56332,145.43,145.38,6.74]
[1727881316569,3.4385,145.42,145.38,10.1792]
[1727881316771,3.4385,145.42,145.38,6.74]
[1727881316961,0.12502,145.43,145.38,6.74]
[1727881317160,0.12502,145.43,145.38,33.14]
[1727881317868,0.12502,145.43,145.36,26.4]
[1727881318175,3.4385,145.42,145.37,6.74]
[1727881318361,0.12502,145.43,145.37,6.74]
[1727881319167,0.12502,145.43,145.38,26.4]
[1727881319375,0.12502,145.43,145.41,3.4386]
[1727881319766,0.12502,145.43,145.38,26.4]
[1727881320170,0.12502,145.43,145.42,3.4384]
[1727881320766,0.12502,145.43,145.38,26.4]
[1727881320974,0.12502,145.43,145.37,6.74]
[1727881321468,0.12502,145.43,145.42,3.4384]
[1727881323377,0.12502,145.49,145.48,3.437]
[1727881324375,0.12502,145.55,145.48,26.4]
[1727881324578,0.12502,145.55,145.51,26.4]
[1727881324775,0.12502,145.55,145.53,26.4]
[1727881324966,0.12502,145.55,145.54,10.1756]
[1727881325274,1.3423,145.6,145.54,6.74]
[1727881325482,1.3423,145.6,145.57,3.4348]
[1727881325876,3.4339,145.62,145.54,6.74]
[1727881326277,37.97075714,145.64,145.53,26.4]
[1727881326478,37.97075714,145.64,145.54,6.74]
[1727881326687,37.97075714,145.64,145.55,3.4352]
[1727881326979,37.97075714,145.64,145.54,6.74]
[1727881327482,3.435,145.57,145.54,6.74]
[1727881327677,26.4,145.62,145.51,6.74]
[1727881328075,3.4351,145.56,145.51,6.74]
[1727881328676,3.4351,145.56,145.51,10.1762]
[1727881328876,3.4355,145.55,145.51,6.74]
[1727881329176,26.4,145.59,145.51,6.74]
[1727881329378,3.4351,145.56,145.52,3.4359]
[1727881329678,1.3066,145.58,145.51,6.74]
[1727881329878,3.4353,145.56,145.51,10.1763]
[1727881330280,1.348,145.57,145.49,3.56172]
[1727881330480,4.82920553,145.56,145.49,0.12502]
[1727881330771,1.3794,145.56,145.5,3.4364]
[1727881330979,3.4358,145.54,145.5,3.4364]
[1727881331285,1.3794,145.56,145.49,0.12502]
[1727881331490,1.348,145.57,145.5,26.4]
[1727881331783,8.0354,145.63,145.52,26.4]
[1727881331989,3.55912,145.61,145.57,3.4347]
[1727881332287,3.55912,145.61,145.53,10.17881014]
[1727881332884,3.4344,145.59,145.53,10.17881014]
[1727881333088,0.12502,145.61,145.53,10.17881014]
[1727881333383,0.12502,145.61,145.53,3.43881014]
[1727881333586,0.12502,145.61,145.56,3.4351]
[1727881333778,0.12502,145.61,145.54,6.74]
[1727881334176,0.12502,145.61,145.54,36.49394339]
[1727881334687,3.55912,145.61,145.57,3.4347]
[1727881335083,0.12502,145.61,145.57,3.4347]
[1727881335482,0.12502,145.61,145.56,3.435]
[1727881335685,0.12502,145.61,145.54,33.14]
[1727881336077,3.4343,145.6,145.56,3.4351]
[1727881336282,0.12502,145.61,145.54,6.74]
[1727881336687,3.4346,145.59,145.55,3.4352]
[1727881336891,0.12502,145.61,145.52,26.4]
[1727881337184,0.12502,145.61,145.52,6.72]
[1727881337386,0.12502,145.61,145.52,33.12]
[1727881337589,3.55902,145.61,145.57,3.4347]
[1727881337881,3.55902,145.61,145.56,6.72]
[1727881338089,0.12502,145.61,145.59,3.4342]
[1727881338278,0.12502,145.61,145.56,6.72]
[1727881338884,0.12502,145.61,145.56,10.1551]
[1727881339389,0.12502,145.61,145.56,3.4351]
[1727881339587,3.4346,145.59,145.56,3.4351]
[1727881339891,0.12502,145.61,145.58,3.4346]
[1727881340191,0.12502,145.61,145.54,26.4]
[1727881340992,0.12502,145.61,145.6,3.4342]
[1727881341895,0.12502,145.67,145.64,3.433]
[1727881342094,0.12502,145.67,145.62,33.12]
[1727881342395,0.12502,145.67,145.62,6.72]
[1727881342582,3.433,145.65,145.62,6.72]
[1727881342787,0.12502,145.67,145.62,6.72]
[1727881343185,0.12502,145.67,145.63,3.4334]
[1727881343384,0.12502,145.67,145.57,26.4]
[1727881343581,0.12502,145.67,145.58,6.72]
[1727881343797,3.4336,145.63,145.59,3.4344]
[1727881344391,3.55762,145.67,145.63,3.4334]
[1727881344585,0.12502,145.67,145.58,6.72]
[1727881345598,3.4328,145.66,145.58,6.72]
[1727881345988,3.4328,145.66,145.62,3.4336]
[1727881346189,0.12502,145.67,145.6,26.4]
[1727881346595,0.12502,145.67,145.64,3.433]
[1727881346797,0.12502,145.67,145.62,6.72]
[1727881347094,0.12502,145.67,145.64,3.4332]
[1727881347403,0.12502,145.67,145.64,26.4]
[1727881347693,0.12502,145.67,145.66,3.4328]
[1727881349615,3.55772,145.67,145.63,3.4333]
[1727881349788,0.12502,145.67,145.62,33.12]
[1727881349984,0.12502,145.67,145.62,6.72]
[1727881350393,3.4329,145.66,145.63,3.4335]
[1727881350790,0.12502,145.67,145.59,26.4]
[1727881350986,3.4332,145.65,145.61,3.4338]
[1727881351203,0.12502,145.67,145.61,3.4338]
[1727881351594,3.4331,145.65,145.61,3.4338]
[1727881351900,0.12502,145.67,145.61,3.4338]
[1727881352690,0.12502,145.67,145.6,3.4341]
[1727881352691,3.4335,145.63,145.6,3.4341]
[1727881353300,3.4337,145.62,145.57,26.4]
[1727881353600,0.12502,145.67,145.58,6.72]
[1727881353796,3.4337,145.63,145.59,3.4343]
[1727881353993,3.4337,145.63,145.58,6.72]
[1727881354197,0.12502,145.67,145.58,6.72]
[1727881354395,3.4339,145.62,145.58,10.1546]
[1727881354594,6.72,145.66,145.55,33.24502]
[1727881354791,27.7716,145.65,145.55,0.12502]
[1727881354994,3.4348,145.58,145.55,0.12502]
[1727881355597,3.4351,145.56,145.55,0.12502]
[1727881355803,1.3199,145.57,145.48,26.4]
[1727881356007,2.6192,145.57,145.48,26.4]
[1727881356206,3.4355,145.55,145.48,26.4]
[1727881356397,2.6192,145.57,145.48,26.4]
[1727881356704,3.4357,145.54,145.48,26.4]
[1727881356907,2.6192,145.57,145.5,26.4]
[1727881357091,2.6192,145.57,145.54,3.4356]
[1727881357292,3.4343,145.6,145.5,33.12]
[1727881357492,3.4343,145.6,145.52,26.4]
[1727881357699,0.12502,145.61,145.56,3.4349]
[1727881357896,0.12502,145.61,145.54,6.72]
[1727881357897,3.55912,145.61,145.54,6.72]
[1727881358310,0.12502,145.61,145.55,26.4]
[1727881359206,0.12502,145.61,145.6,3.4342]
[1727881359406,0.12502,145.67,145.6,26.4]
[1727881359598,0.12502,145.67,145.64,3.4332]
[1727881360199,0.12502,145.67,145.6,26.4]
[1727881360800,0.12502,145.67,145.62,3.4335]
[1727881361304,0.12502,145.67,145.61,3.4338]
[1727881361305,3.4331,145.65,145.61,3.4338]
[1727881361502,0.12502,145.67,145.58,6.72]
[1727881362002,3.4331,145.65,145.61,3.4339]
[1727881362203,0.12502,145.67,145.58,6.72]
[1727881362604,3.4331,145.65,145.61,3.4339]
[1727881363111,3.4334,145.64,145.61,3.4339]
[1727881363306,0.12502,145.67,145.58,6.72]
[1727881363910,3.4334,145.64,145.6,3.434]
[1727881364113,0.12502,145.67,145.58,6.72]
[1727881364507,3.4329,145.66,145.62,3.4336]
[1727881364812,3.4329,145.66,145.59,26.4]
[1727881365015,3.4329,145.66,145.61,3.4339]
[1727881365205,3.4329,145.66,145.59,26.4]
[1727881365513,0.12502,145.67,145.62,3.4336]
[1727881365702,3.4332,145.65,145.62,3.4336]
[1727881366209,0.12502,145.67,145.63,3.4335]
[1727881366210,3.4329,145.66,145.63,3.4335]
[1727881366407,3.4329,145.66,145.59,26.4]
[1727881366713,0.12502,145.67,145.61,3.4339]
[1727881366714,3.4332,145.65,145.61,3.4339]
[1727881366904,0.12502,145.67,145.59,26.4]
[1727881367312,3.433,145.66,145.62,3.4335]
[1727881367513,0.12502,145.67,145.62,3.4335]
[1727881368012,0.12502,145.67,145.58,6.72]
[1727881368716,0.12502,145.67,145.65,3.433]
[1727881369008,0.12502,145.67,145.59,26.4]
[1727881369312,0.12502,145.67,145.65,3.433]
[1727881369507,0.12502,145.67,145.62,36.57052698]
[1727881369812,0.12502,145.67,145.66,3.4328]
[1727881373515,0.12502,145.73,145.66,33.12]
[1727881373710,0.12502,145.73,145.69,26.4]
[1727881373914,0.12502,145.73,145.7,10.1988624]
[1727881374210,0.12502,145.73,145.71,3.4316]
[1727881374608,0.12502,145.73,145.72,3.4314]
[1727881375816,0.12502,145.73,145.7,6.72]
[1727881376008,0.12502,145.73,145.67,26.4]
[1727881376211,0.12502,145.73,145.67,33.12]
[1727881376715,3.55622,145.73,145.67,33.12]
[1727881376910,0.12502,145.73,145.69,3.4319]
[1727881377215,0.12502,145.73,145.67,6.72]
[1727881377412,0.12502,145.73,145.68,3.4322]
[1727881377613,3.4315,145.72,145.67,33.12]
[1727881377913,3.4315,145.72,145.68,3.4322]
[1727881378921,3.55622,145.73,145.69,3.4319]
[1727881379213,0.12502,145.73,145.67,33.12]
[1727881379914,0.12502,145.73,145.68,3.4322]
[1727881379915,3.4315,145.72,145.68,3.4322]
[1727881380315,0.12502,145.73,145.67,33.12]
[1727881380817,0.12502,145.73,145.68,3.4322]
[1727881380818,3.4316,145.72,145.68,3.4322]
[1727881381008,0.12502,145.73,145.67,33.12]
[1727881381314,26.52502,145.73,145.62,26.4]
[1727881381525,26.4,145.7,145.61,0.12502]
[1727881381713,3.3754233,145.69,145.61,0.12502]
[1727881381912,3.4334,145.64,145.61,3.55882]
[1727881382113,10.15969217,145.68,145.61,0.12502]
[1727881382409,3.4331,145.65,145.61,3.55882]
[1727881382716,6.7,145.68,145.61,3.55882]
[1727881382717,3.36354192,145.67,145.61,0.12502]
[1727881382918,3.4332,145.65,145.61,3.55882]
[1727881383220,3.36354192,145.67,145.61,0.12502]
[1727881383620,6.7,145.68,145.61,0.12502]
[1727881384309,6.72,145.71,145.61,0.12502]
[1727881384510,3.4328,145.66,145.61,0.12502]
[1727881384727,3.3535835,145.7,145.61,0.12502]
[1727881385021,3.4327,145.67,145.63,3.4334]
[1727881385208,3.4327,145.67,145.61,0.12502]
[1727881387129,3.4327,145.67,145.63,3.4333]
[1727881387328,3.4327,145.67,145.61,0.12502]
[1727881387531,3.3535835,145.7,145.61,0.12502]
[1727881387823,4.0844,145.72,145.64,26.4]
[1727881388010,4.0844,145.72,145.66,26.4]
[1727881388211,0.12502,145.73,145.67,3.40164462]
[1727881388820,0.12502,145.73,145.7,3.4318]
[1727881389024,0.12502,145.73,145.69,33.12]
[1727881389218,0.12502,145.73,145.71,26.4]
[1727881389421,0.12502,145.73,145.72,3.4314]
[1727881389727,0.12502,145.73,145.71,26.4]
[1727881390034,0.12502,145.73,145.7,3.4317]
[1727881390331,0.12502,145.73,145.69,6.72]
[1727881390517,0.12502,145.73,145.69,10.1519]
[1727881390518,3.55622,145.73,145.69,10.1519]
[1727881390718,0.12502,145.73,145.69,6.72]
[1727881391421,0.12502,145.73,145.65,6.7]
[1727881391924,3.432,145.7,145.66,3.4327]
[1727881392125,0.12502,145.73,145.65,6.7]
[1727881392526,3.55622,145.73,145.7,3.4318]
[1727881392929,0.12502,145.73,145.71,3.4315]
[1727881393119,0.12502,145.73,145.69,26.4]
[1727881393318,0.12502,145.73,145.69,33.1]
[1727881393522,0.12502,145.73,145.71,3.4315]
[1727881394217,0.12502,145.73,145.69,33.1]
[1727881395135,0.12502,145.73,145.69,6.7]
[1727881395627,0.12502,145.73,145.67,6.7]
[1727881396432,3.55622,145.73,145.69,3.4319]
[1727881396935,0.12502,145.73,145.7,3.4317]
[1727881397231,0.12502,145.73,145.69,26.4]
[1727881398332,0.12502,145.73,145.71,3.4316]
[1727881399527,0.12502,145.73,145.72,3.4314]
[1727881401032,0.12502,145.73,145.71,6.7]
[1727881401330,0.12502,145.73,145.7,3.4316]
[1727881401331,0.12502,145.73,145.66,6.7]
[1727881401539,3.4318,145.71,145.66,6.7]
[1727881401833,0.12502,145.73,145.66,6.7]
[1727881402035,3.4315,145.72,145.66,33.1]
[1727881402221,0.12502,145.73,145.7,3.4318]
[1727881402723,0.12502,145.73,145.68,3.4322]
[1727881402931,0.12502,145.73,145.66,33.1]
[1727881403127,3.4317,145.71,145.66,33.1]
[1727881403429,3.4317,145.71,145.67,3.4323]
[1727881403925,3.4317,145.71,145.68,3.4322]
[1727881404125,0.12502,145.73,145.66,33.1]
[1727881404335,0.12502,145.73,145.7,3.4317]
[1727881404924,3.55622,145.73,145.7,3.4317]
[1727881405125,0.12502,145.73,145.68,26.4]
[1727881405732,0.12502,145.73,145.71,3.4314]
[1727881405940,0.12502,145.73,145.68,26.4]
[1727881406237,0.12502,145.73,145.71,3.4315]
[1727881406440,0.12502,145.73,145.68,26.4]
[1727881406631,4.7698,145.78,145.71,26.4]
[1727881406831,1.3398,145.78,145.75,3.4305]
[1727881407031,1.3398,145.78,145.73,26.4]
[1727881407534,3.4303,145.77,145.73,29.8311]
[1727881407734,1.3398,145.78,145.73,26.4]
[1727881407934,1.3398,145.78,145.7,6.7]
[1727881407935,1.3398,145.78,145.71,26.4]
[1727881408140,1.3398,145.78,145.68,26.4]
[1727881408353,27.7398,145.78,145.67,0.12502]
[1727881408642,3.4312,145.73,145.7,3.4318]
[1727881408941,27.7398,145.78,145.67,6.82502]
[1727881408942,6.7,145.77,145.67,6.82502]
[1727881409445,6.7,145.77,145.7,3.4317]
[1727881409627,6.7,145.77,145.67,6.82502]
[1727881409833,3.432,145.7,145.67,3.55742]
[1727881410643,1.3014,145.73,145.67,3.55742]
[1727881410937,1.3621,145.72,145.69,3.432]
[1727881411330,1.3621,145.72,145.67,0.12502]
[1727881411534,1.3621,145.72,145.7,3.4318]
[1727881411841,1.3014,145.73,145.67,0.12502]
[1727881412649,4.8033,145.75,145.71,3.4315]
[1727881413035,1.3725,145.75,145.71,3.4315]
[1727881413746,1.3816,145.77,145.71,26.4]
[1727881413944,1.48618,145.8,145.71,26.4]
[1727881414244,3.55492,145.79,145.75,3.4305]
[1727881414444,0.12502,145.79,145.73,6.7]
[1727881414840,0.12502,145.79,145.74,3.4307]
[1727881415140,0.12502,145.79,145.73,6.7]
[1727881415442,3.4306,145.76,145.73,6.7]
[1727881415629,0.12502,145.79,145.73,6.7]
[1727881416239,3.4303,145.77,145.74,3.4309]
[1727881416642,3.4308,145.75,145.72,3.4311]
[1727881416854,0.12502,145.79,145.71,26.4]
[1727881417342,3.4304,145.77,145.74,3.4308]
[1727881417537,0.12502,145.79,145.72,3.45650041]
[1727881417736,0.12502,145.79,145.71,26.4]
[1727881417937,3.4303,145.77,145.71,26.4]
[1727881418641,3.4303,145.77,145.74,3.4307]
[1727881419045,0.12502,145.79,145.72,3.43488441]
[1727881419242,3.43,145.78,145.75,3.4304]
[1727881419941,0.12502,145.79,145.77,3.4301]
[1727881420136,0.12502,145.79,145.73,26.4]
[1727881420342,0.12502,145.79,145.74,6.7]
[1727881420747,0.12502,145.79,145.77,3.4301]
[1727881421551,0.12502,145.79,145.78,3.4299]
[1727881423452,0.12518,145.8,145.79,3.4297]
[1727881424345,0.12502,145.85,145.83,3.4287]
[1727881424543,0.12502,145.85,145.81,26.4]
[1727881424941,0.12502,145.85,145.82,6.68]
[1727881425142,0.12502,145.91,145.84,26.4]
[1727881425344,0.12502,145.91,145.86,26.4]
[1727881425555,0.12502,145.91,145.86,33.08]
[1727881425756,0.12502,145.91,145.88,26.4]
[1727881426247,0.12502,145.91,145.9,3.4271]
[1727881426847,0.12502,145.91,145.88,26.4]
[1727881427050,0.12502,145.91,145.86,33.08]
[1727881427660,0.12502,145.91,145.88,26.4]
[1727881427855,0.12502,145.91,145.88,29.74451918]
[1727881428053,3.9852,145.96,145.9,29.8271]
[1727881428257,3.9852,145.96,145.9,33.08]
[1727881428659,0.12502,145.97,145.93,26.4]
[1727881429462,0.12502,145.97,145.95,3.4258]
[1727881429668,0.12502,145.97,145.93,26.4]
[1727881431764,0.12502,145.97,145.96,26.4]
[1727881432063,0.12518,145.99,145.96,26.4]
[1727881435262,0.12518,145.99,145.97,3.4253]
[1727881436274,0.12518,145.99,145.96,26.4]
[1727881436972,3.55038,145.99,145.96,26.4]
[1727881437272,0.12518,145.99,145.95,6.68]
[1727881437569,3.4254,145.98,145.95,6.68]
[1727881437774,0.12518,145.99,145.95,6.68]
[1727881438075,3.4254,145.98,145.95,6.68]
[1727881440166,0.12518,145.99,145.93,26.4]
[1727881440376,0.12518,145.99,145.92,6.68]
[1727881440977,0.12518,145.99,145.91,0.12502]
[1727881441272,3.4267,145.92,145.91,0.12502]
[1727881441474,9.3528,145.98,145.91,0.12502]
[1727881442875,3.4267,145.92,145.91,0.12502]
[1727881443476,3.4267,145.92,145.88,29.8275]
[1727881443477,26.52502,145.97,145.88,3.4276]
[1727881443671,26.52502,145.97,145.86,26.4]
[1727881443974,3.4271,145.91,145.88,3.4274]
[1727881444179,0.12502,145.97,145.86,26.4]
[1727881444774,0.12502,145.97,145.88,26.4]
[1727881444985,0.12502,145.97,145.93,26.4]
[1727881445183,0.12502,145.97,145.96,3.4257]
[1727881445370,0.12502,145.97,145.93,6.68]
[1727881445771,3.4257,145.96,145.94,3.4262]
[1727881445968,0.12502,145.97,145.93,6.68]
[1727881446377,0.12502,145.97,145.95,3.4259]
[1727881446973,0.12502,145.97,145.93,10.1062]
[1727881447168,0.12502,145.97,145.93,6.68]
[1727881447772,0.12502,145.97,145.9,33.08]
[1727881447974,0.12502,145.97,145.89,3.4273]
[1727881448176,0.12502,145.97,145.87,6.68]
[1727881448375,3.4269,145.92,145.87,6.68]
[1727881448583,3.4269,145.92,145.89,3.4274]
[1727881448886,3.4263,145.94,145.88,26.4]
[1727881449091,4.0413,145.96,145.9,26.4]
[1727881449276,2.697,145.96,145.9,26.4]
[1727881449477,6.1228,145.96,145.9,26.4]
[1727881449774,29.76827101,146.02,145.9,26.4]
[1727881449775,0.12502,146.03,145.95,52.8]
[1727881449981,0.12502,146.03,145.96,6.68]